Cogmind - Beta 16.1 @@@ ROGUE MODE // 2026.03.10 @ 20:26:46 Player: FretfulMantis Result: Destroyed by D-53 Grenadier with Mini Grenade Launcher Performance ------------- Evolutions (0) 0 Regions Visited (2) 400 Robots Destroyed (11) 55 Value Destroyed (156) 156 Prototype IDs (0) 0 Alien Tech Used (0) 0 Bonus (0) 0 TOTAL SCORE: 611 Bonus ------- None Cogmind --------- Core Integrity 0/250 Matter 300/300 Energy 94/100 System Corruption 0% Temperature Cool (0) Movement Core (350) Ox6 Location -10/Mines Parts ------- > --- POWER (1) -------- (None) > --- PROPULSION (2) --- (None) > --- UTILITY (2) ------ Large Storage Unit > --- WEAPON (2) ------- (None) > --- INVENTORY (15) --- Light Ion Engine Light Ion Engine Light Treads Light Treads Wheel Wheel Compact Wheel Compact Wheel Compact Wheel Huge Storage Unit Medium Matter Pod (100) Hacking Suite Light Assault Rifle Peak State ------------ > --- POWER ------------ Ion Engine > --- PROPULSION ------- Aluminum Leg Aluminum Leg > --- UTILITY ---------- Small Storage Unit Large Storage Unit > --- WEAPON ----------- Medium Laser Assault Rifle > --- INVENTORY -------- Light Ion Engine Light Treads Light Treads Wheel Wheel Huge Storage Unit Hacking Suite Light Assault Rifle [Rating: 8] Favorites ----------- Power Ion Engine Engine Ion Engine Propulsion Aluminum Leg Leg Aluminum Leg Utility Small Storage Unit Device Tractor Beam Storage Small Storage Unit Weapon Assault Rifle Energy Gun Medium Laser Ballistic Gun Assault Rifle Launcher Grenade Launcher Build | -11 -10 -10 ------- Run | Yrd Mat Min Slots Evolved . | . . . Power . | . . . Propulsion . | . . . Utility . | . . . Weapon . | . . . Parts Attached 9 | 6 2 1 Power 1 | 1 . . Engine 1 | 1 . . Core . | . . . Reactor . | . . . Propulsion 2 | 2 . . Treads . | . . . Leg 2 | 2 . . Wheel . | . . . Hover . | . . . Flight . | . . . Utility 3 | 1 2 . Device 1 | . 1 . Storage 2 | 1 1 . Processor . | . . . Hackware . | . . . Protection . | . . . Artifact . | . . . Weapon 3 | 2 . 1 Energy Gun 1 | 1 . . Energy Cannon . | . . . Ballistic Gun 1 | 1 . . Ballistic Cannon . | . . . Launcher 1 | . . 1 Special Weapon . | . . . Impact Weapon . | . . . Slashing Weapon . | . . . Piercing Weapon . | . . . Special Melee Weapon . | . . . Unidentified Prototypes . | . . . Parts Lost 7 | . . 7 Power 1 | . . 1 Propulsion 2 | . . 2 Utility 1 | . . 1 Weapon 3 | . . 3 Highest Loss Streak 7 | . . 7 To Critical Strikes . | . . . Average Backups 8 | 3 8 13 Power 1 | . 1 2 Propulsion 4 | 2 4 7 Utility 1 | . 1 3 Weapon 1 | . 1 1 Tool/Special . | . . . Unused Backups 11 | . 2 9 Power 1 | . . 1 Propulsion 4 | . . 4 Utility 3 | . . 3 Weapon 3 | . 2 1 Tool/Special . | . . . Average Slot Usage (%) 87 | . 85 98 Engine 14 | . 14 14 Leg 28 | . 28 28 Device 2 | . . 14 Storage 14 | . 14 14 Energy Gun 13 | . 14 12 Ballistic Gun 14 | . 14 14 Peak Build Rating 8 | 6 8 8 Average Rating 6 | 4 6 7 On Entrance 4 | . 6 8 Avg Prop Armor Cover (%) . | . . . Naked Turns . | . . . Heaviest Build 30 | 14 30 30 Greatest Support 20 | 20 20 20 Greatest Overweight (x) 6 | 1 1 6 Average Overweight (x) . | . . 1 Largest Inventory Capacity 15 | 8 15 15 Average Capacity 10 | 7 10 15 Most Carried 14 | 6 13 14 Average Carried 8 | 3 8 13 Final Capacity 15 | 8 15 15 Final Carried 13 | 6 13 13 Class Distribution -------------------- 100% | Mutant Dominant Class ---------------- Mutant | -10/Materials Mutant | -10/Mines Resources | -11 -10 -10 ----------- Run | Yrd Mat Min Matter Collected 481 | 186 255 40 Remotely 60 | . 20 40 Salvage Created 286 | . 286 . Parts 23 | . 23 . Haulers Intercepted . | . . . Recyclers Shooed 6 | . 6 . Parts Field Recycled . | . . . Retrieved Matter . | . . . Parts Self-Destructed . | . . . Prevented . | . . . Parts Restored . | . . . Kills | -11 -10 -10 ------- Run | Yrd Mat Min Combat Hostiles Destroyed 8 | . 8 . Guns 8 | . 8 . Classes Destroyed 4 | . 4 . Recycler 2 | . 2 . Operator 1 | . 1 . Swarmer 6 | . 6 . Grunt 2 | . 2 . Best Kill Streak 3 | . 3 . Combat Bots Only 3 | . 3 . Max Kills in Single Turn 1 | . 1 . Gunslinging . | . . . Exploded . | . . . Melee . | . . . Uniques/NPCs Destroyed . | . . . Combat | -11 -10 -10 -------- Run | Yrd Mat Min Hostile Shots Fired 45 | . 40 5 Missed 6 | . 6 . Hits 39 | . 34 5 Projectile 39 | . 34 5 AOE 15 | . . 15 Critical Strikes 2 | . 2 . Damage Taken 790 | . 305 485 Core 253 | . 60 193 Absorbed by Shields . | . . . Core Remaining (%) 100 | 100 . . Volleys Fired 34 | . 32 2 Largest 2 | . 2 1 Hottest 70 | . 70 30 Shots Fired 66 | . 64 2 Gun 65 | . 64 1 Cannon . | . . . Launcher 1 | . . 1 Special . | . . . Kinetic 33 | . 32 1 Thermal 32 | . 32 . Explosive 1 | . . 1 Electromagnetic . | . . . Robot Hit Streak 8 | . 8 5 Robot Miss Streak 3 | . 3 . Penetration Max . | . . . Secondary Targets 1 | . 1 . Max Gunslinging Chain 1 | . 1 . Shots Hit Robots 43 | . 41 2 Core Hits 20 | . 18 2 Critical Kills . | . . . Critical Parts Destroyed . | . . . Critical Strikes 4 | . 4 . Burn 4 | . 4 . Melee Attacks . | . . . Impact . | . . . Slashing . | . . . Piercing . | . . . Sneak Attacks . | . . . Combat Hostiles . | . . . Follow-up Attacks . | . . . Damage Inflicted 565 | . 536 29 Guns 548 | . 536 12 Cannons . | . . . Explosions 17 | . . 17 Melee . | . . . Ramming . | . . . Kinetic 261 | . 249 12 Thermal 287 | . 287 . Explosive 17 | . . 17 Electromagnetic . | . . . Impact . | . . . Slashing . | . . . Piercing . | . . . Highest Corruption . | . . . Average Corruption . | . . . Corruption Purged . | . . . Corruption Blocked . | . . . Overload Shots . | . . . Overflow Damage . | . . . Projectiles . | . . . Explosions . | . . . Melee . | . . . Knockbacks . | . . . Impact . | . . . Kinetic . | . . . Secondary . | . . . Self-Inflicted Damage 22 | . . 22 Shots 1 | . . 1 Rammed . | . . . Targets Rammed . | . . . Kicked . | . . . Crushed . | . . . Highest Temperature 72 | . 72 . Average Temperature 29 | . 29 . Received Heat Transfer 54 | . 54 . Siege Activations . | . . . Martial Activations . | . . . Shielding Activations . | . . . Robots Disrupted . | . . . Combat Hostiles . | . . . Robots Corrupted . | . . . Combat Hostiles . | . . . Parts Fried . | . . . Impact Corruptions . | . . . Robots Melted . | . . . Combat Hostiles . | . . . Parts Melted 3 | . 3 . Heat Transferred 1147 | . 1147 . Parts Sabotaged . | . . . Parts Stolen . | . . . Parts Stripped . | . . . Power Chain Reactions . | . . . Alert | -11 -10 -10 ------- Run | Yrd Mat Min Maximum Alert Level . | . . . Low Security (%) 100 | 100 100 100 Level 1 . | . . . Level 2 . | . . . Level 3 . | . . . Level 4 . | . . . Level 5 . | . . . High Security . | . . . Max Security . | . . . Peak Influence 130 | . 130 31 Initial 31 | . . 31 Average 46 | . 60 14 Influence Increases 221 | . 220 1 Destroy 0b10 Robot/C 160 | . 160 . Destroy 0b10 Robot/NC 15 | . 15 . Destroy Leader 30 | . 30 . Destroy Structure 1 | . . 1 Lose Combat Pursuer 15 | . 15 . Influence Decreases 221 | . 140 81 Entered New Map 49 | . . 49 Time Decay 170 | . 140 30 Lost Part 2 | . . 2 Squads Dispatched 1 | . 1 . Investigation 1 | . 1 . Extermination . | . . . Reinforcement . | . . . Assault . | . . . Garrison . | . . . Intercept . | . . . Searches Triggered . | . . . Construction Impeded . | . . . Haulers Reinforced . | . . . Active Scanning Responses . | . . . Cargo Convoy Interrupts . | . . . Stealth | -11 -10 -10 --------- Run | Yrd Mat Min Distress Signals 2 | . 2 . Communications Jammed . | . . . Distress Signals . | . . . Times Spotted 19 | . 15 4 Peak Tracking Total 4 | . 4 3 Tactical Retreats 1 | . 1 . Traps | -11 -10 -10 ------- Run | Yrd Mat Min Traps Triggered . | . . . Indirectly . | . . . Trap Hack Attempts . | . . . Triggered . | . . . Disarmed . | . . . Reprogrammed . | . . . Reused . | . . . Traps Extracted . | . . . Installed . | . . . Triggered . | . . . Machines | -11 -10 -10 ---------- Run | Yrd Mat Min Machines Disabled . | . . . Max in Single Turn . | . . . Machines Repaired . | . . . Machines Dismantled . | . . . Machines Sabotaged . | . . . Overloaded Fab Kills . | . . . Hacking | -11 -10 -10 --------- Run | Yrd Mat Min Machines Accessed 4 | . 4 . Terminals 4 | . 4 . Fabricators . | . . . Repair Stations . | . . . Recycling Units . | . . . Scanalyzers . | . . . Garrison Access . | . . . Total Hacks 10 | . 10 . Successful 1 | . 1 . Failed 9 | . 9 . Catastrophic 3 | . 3 . Database Lockouts . | . . . Manual 5 | . 5 . Terminals 10 | . 10 . Fabricators . | . . . Repair Stations . | . . . Recycling Units . | . . . Scanalyzers . | . . . Garrison Access . | . . . Terminal Hacks . | . . . Fabricator Hacks . | . . . Repair Station Hacks . | . . . Recycling Unit Hacks . | . . . Scanalyzer . | . . . Garrison Access Hacks . | . . . Unauthorized Hacks 1 | . 1 . Terminals 1 | . 1 . Botnet 1 | . 1 . Fabricators . | . . . Repair Stations . | . . . Recycling Units . | . . . Scanalyzers . | . . . Garrison Access . | . . . Data Cores Recovered 1 | . 1 . Used 1 | . 1 . Hacking Detections 4 | . 4 . Full Trace Events 2 | . 2 . Feedback Events . | . . . Feedback Blocked . | . . . Robot Schematics Acquired . | . . . Robots Built . | . . . Authchips . | . . . Time . | . . . Total Robot Build Rating . | . . . Part Schematics Acquired . | . . . Parts Built . | . . . Authchips . | . . . Time . | . . . Total Part Build Rating . | . . . Part Studies Acquired . | . . . Parts Repaired . | . . . Time . | . . . Parts Recycled . | . . . Recycled Matter . | . . . Retrieved Matter . | . . . Retrieved Components . | . . . Parts Scanalyzed . | . . . Part Schematics Acquired . | . . . Parts Damaged . | . . . Bothacking | -11 -10 -10 ------------ Run | Yrd Mat Min Used RIF Installer . | . . . Robots Hacked . | . . . Non-combat . | . . . Combat . | . . . Robot Hacks Applied . | . . . Relay Couplers Released . | . . . Fabnet Peak Effective % . | . . . Robots Rewired . | . . . Allies Hacked . | . . . Hacks Repelled . | . . . Allies | -11 -10 -10 -------- Run | Yrd Mat Min Total Allies . | . . . Largest Group . | . . . Highest-Rated Group . | . . . Highest-Rated Ally . | . . . Total Orders . | . . . Ally Attacks . | . . . Total Damage . | . . . Kills . | . . . Allies Corrupted . | . . . Allies Melted . | . . . Intel | -11 -10 -10 ------- Run | Yrd Mat Min Active Infowar (turns) . | . . . Robot Analysis Total . | . . . Derelict Logs Recovered . | . . . Drone Launches . | . . . Drone Recoveries . | . . . Exploration | -11 -10 -10 ------------- Run | Yrd Mat Min Turns Passed 536 | 59 393 84 Spaces Moved 264 | 38 190 36 Core 9 | 8 . 1 Treads . | . . . Legs 255 | 30 190 35 Wheels . | . . . Hover . | . . . Flight . | . . . Fastest Speed 50 | 50 120 190 Average Speed 145 | 118 142 194 Slowest Speed 350 | 190 190 350 Overloaded Moves . | . . . Propulsion Burnouts . | . . . Robots Hopped . | . . . Potential Cave-ins . | . . . Cave-ins Triggered . | . . . Exploration Rate (%) 18 | 4 39 12 Regions Visited 2 Branch Regions 1 Pre-discovered Areas . | . . . Known Exits Taken . | . . . Unknown Exits Taken 2 | 1 1 . Scrap Searched . | . . . Spaces Dug . | . . . Terrain Destroyed 1 | . . 1 Melee . | . . . Projectile . | . . . AOE 1 | . . 1 Terrain Rammed . | . . . Walls Destroyed . | . . . Machines Disabled . | . . . Actions | -11 -10 -10 --------- Run | Yrd Mat Min Total 350 | 49 250 51 Wait 25 | . 14 11 Move 262 | 37 189 36 Hop . | . . . Pick Up 16 | 6 9 1 Fast Attach 8 | 6 2 . Attach 1 | . . 1 Detach 1 | . 1 . Swap . | . . . Drop 3 | . 3 . Fire 34 | . 32 2 Melee . | . . . Ram . | . . . Kick . | . . . Crush . | . . . Escape Stasis . | . . . Rewire . | . . . Trap . | . . . Miscellaneous . | . . . Route ------- -11/Scrapyard -10/Materials -10/Mines History --------- Turn | Location | Event 39 | -11/Scrapyard | Discovered new exit (range 15) 60 | -11/Scrapyard | Entered Materials 270 | -10/Materials | Discovered new exit (range 7) 304 | -10/Materials | Build established: Mutant 453 | -10/Materials | Entered Mines 462 | -10/Mines | Assembled infested the area 470 | -10/Mines | YI-UF0 nonchalantly dropped a Grenade Launcher on the ground 533 | -10/Mines | Core integrity fell below 50% 536 | -10/Mines | Core integrity fell below 20% 537 | -10/Mines | Destroyed by D-53 Grenadier with Mini Grenade Launcher Last Messages --------------- 00515_ K-01 Serf collects debris. 00529_ YI-UF0 mumbles something. 00529_ C-45 Heavy ARC bursts open, deploying its payload. 00529_ D-53 Grenadier unfolds itself. 00529_ Med. Laser destroyed. 00529_ YI-UF0: "BOOM!" 00529_ K-01 Serf destroyed. 00530_ Acquired 30 matter. 00530_ YI-UF0: "Whaaaaaaaa!" 00530_ Aluminum Leg destroyed. 00530_ Ion Engine destroyed. 00532_ Assault Rifle destroyed. 00533_ Aluminum Leg destroyed. 00534_ K-01 Serf destroyed. 00535_ Acquired 10 matter. 00535_ The unstable cave ceiling collapses. 00536_ Grenade Launcher destroyed. 00536_ Tractor Beam destroyed. 00536_ D-53 Grenadier destroyed. 00537_ The unstable cave ceiling collapses. Map ----- +----------------------------------------------------+ | ???????????????# ???????????????????????????????? | | ???????????????# ??????????????????????????????? | | ???????????????# ?????????????????????????????? | | ??????????????## ########????????????????????? | | ????????????### ##???????????????????? | | ????????# #???????????????????? | | ????????# #???????????????????? | | ???????? #### ## ##???????????????????? | | ?????????????## ### ##????????????????????? | | ??????????????## ??# #?????????????????????? | | ???????????????# ??# #?????????????????????? | | ???????????????## ??# #?????????????????????? | | ????????????????### #??# #?????????????????????? | | ??????????????????####### #?????????????????????? | | ????????????????????# #?????????????????????? | | ????????????????????# #?????????????????????? | | ????????????????????# #####?????????????????????? | | ????????????????????# ##????????????????????????? | | ????????????????????# # ####????????????????????? | | ???????????????????## ########?????????????? | | ???????????????????# ??????????????? | | ??????????????????## #???????????????? | | ??????????????????# g #???????????????? | | ??????????????????# d ##??????????????? | | ??????????????????## #??????????????? | | ???????????????????## @ #??????????????? | | ????????????????????## #??????????????? | | ?????????????????????## #??????????????? | | ??????????????????????## ## #??????????????? | | ???????????????????????##?? #??????????????? | | ???????????????????????????#####a##??????????????? | | ???????????????????????????????? #???????????????? | | ?????????????????????????????????#???????????????? | | ?????????????????????????????????????????????????? | | ?????????????????????????????????????????????????? | | ?????????????????????????????????????????????????? | | ?????????????????????????????????????????????????? | | ?????????????????????????????????????????????????? | | ?????????????????????????????????????????????????? | | ?????????????????????????????????????????????????? | | | | | | | | | | | | | | | | | | | | | +----------------------------------------------------+ Best States ------------- Heat Dissipation 25 Energy Generation 10 Energy Capacity 250 Matter Stores 300 Matter Capacity 300 Sight Range 16 Terrain Scan Density 10 Evasion (%) 55 Item Schematics ----------------- None Robot Schematics ------------------ None Fabricated ------------ Nothing Repaired ---------- Nothing Studied --------- None Alien Tech Used ----------------- None Achievements -------------- None Challenges ------------ None Game ------ Seed VortexAutogunLegs Manual? 0 Play Time 00:06:50 Cumulative 52.4 hours Start 2026.03.04 @ 21:34:55 End 2026.03.10 @ 20:26:46 Sessions 2 Manual Loads 0 Difficulty Rogue Special Mode None Game No. 64 Rogue 64 Adventurer 0 Explorer 0 Win Type - Total 2 Types 2/0/0/0/0/0/0/0/0/0 Lore% 39 Gallery% 41 Achievement% 33 Wizard Run 0 Options --------- Layout 0 ASCII 0 Keyboard 1 Movement Numpad Keybinds 0 Fullscreen 1 Font 24/Smallcaps Map View 76x50 Zoom Use 0% Tactical HUD 1 Map Filters NONE Filters NONE Steam 1 RUN: 92e00b9f-4c8b-4bc0-8d3d-ee727906b0fd